bitfinex-derivatives/quotes_BTCF0:USTF0_20210707
["timestamp","ask_amount","ask_price","bid_price","bid_amount"]
[1625681205304,0.24057544,34747.0,34746.0,1.20527446]
[1625681205454,0.24057544,34747.0,34746.0,1.47132446]
[1625681205619,0.24057544,34747.0,34746.0,1.79788941]
[1625681205760,0.24057544,34747.0,34746.0,1.14469072]
[1625681206433,0.24057544,34747.0,34746.0,1.79801015]
[1625681207115,0.24057544,34747.0,34746.0,2.77828463]
[1625681207781,0.59087253,34751.0,34746.0,2.77828463]
[1625681207931,0.59087253,34751.0,34750.0,0.24057544]
[1625681208081,0.59087253,34751.0,34750.0,0.32226046]
[1625681208384,0.59087253,34751.0,34750.0,0.32734964]
[1625681208832,0.84407099,34751.0,34750.0,0.7361125]
[1625681210938,1.18232032,34751.0,34750.0,0.73631557]
[1625681211312,0.50655003,34751.0,34750.0,1.39044313]
[1625681212518,0.50655003,34751.0,34750.0,0.73631557]
[1625681212817,0.50655003,34751.0,34750.0,0.81811049]
[1625681212818,2.19631794,34751.0,34750.0,0.81811049]
[1625681213267,2.19631794,34751.0,34750.0,0.49099856]
[1625681213417,1.18249098,34751.0,34750.0,1.06324151]
[1625681213646,2.19633611,34751.0,34750.0,1.06324151]
[1625681213944,1.42306642,34751.0,34750.0,1.06324151]
[1625681214847,2.43724731,34751.0,34750.0,0.73621075]
[1625681215148,2.43724731,34751.0,34750.0,0.73564547]
[1625681215295,2.43724731,34751.0,34750.0,1.062216]
[1625681215746,2.43724731,34751.0,34750.0,0.7355621]
[1625681215971,1.42306642,34751.0,34750.0,1.38849423]
[1625681217096,2.43784521,34751.0,34750.0,2.36842097]
[1625681217697,2.43784521,34751.0,34750.0,1.38849423]
[1625681218750,2.43784521,34751.0,34750.0,2.36931349]
[1625681218913,2.43784521,34751.0,34750.0,1.38849423]
[1625681221985,3.62292732,34751.0,34750.0,2.36958706]
[1625681225515,3.62292732,34751.0,34750.0,3.51497487]
[1625681234003,2.43784521,34751.0,34750.0,3.51497487]
[1625681235581,3.62425176,34751.0,34750.0,3.51497487]
[1625681235810,2.43784521,34751.0,34750.0,4.8212233]
[1625681236487,2.43784521,34751.0,34750.0,3.51497487]
[1625681237387,3.62437602,34751.0,34750.0,4.82140619]
[1625681237686,2.43784521,34751.0,34750.0,4.82140619]
[1625681238138,3.62437459,34751.0,34750.0,4.82140619]
[1625681238588,2.43784521,34751.0,34750.0,4.82140619]
[1625681250077,2.52374521,34751.0,34750.0,4.82140619]
[1625681250753,2.43784521,34751.0,34750.0,4.82140619]
[1625681252853,2.52364521,34751.0,34750.0,4.82140619]
[1625681253004,2.43784521,34751.0,34750.0,4.82140619]
[1625681253756,1.42306642,34751.0,34750.0,4.82140619]
[1625681253905,1.18249098,34751.0,34750.0,4.82140619]
[1625681254057,0.50655003,34751.0,34750.0,6.28961946]
[1625681254506,0.84581089,34751.0,34750.0,6.28961946]
[1625681254960,1.18490363,34751.0,34750.0,6.28961946]
[1625681255108,1.18490363,34751.0,34750.0,6.43261946]
[1625681255858,0.50655003,34751.0,34750.0,6.43261946]
[1625681257286,0.50655003,34751.0,34750.0,4.96440619]
[1625681257436,0.50655003,34751.0,34750.0,6.432266]
[1625681258262,0.84575868,34751.0,34750.0,6.432266]
[1625681258712,0.50887815,34751.0,34750.0,6.432266]
[1625681259613,0.59379705,34751.0,34750.0,6.432266]
[1625681259775,0.2545884,34751.0,34750.0,6.432266]
[1625681260589,0.0849189,34751.0,34750.0,6.432266]
[1625681261567,0.0849189,34751.0,34750.0,6.44075372]
[1625681261867,0.59371316,34752.0,34750.0,6.44075372]
[1625681262170,0.59371316,34752.0,34751.0,6.03493024]
[1625681262320,0.25454452,34752.0,34751.0,6.27550568]
[1625681262998,0.0849044,34752.0,34751.0,6.27550568]
[1625681263446,0.25451411,34752.0,34751.0,6.27550568]
[1625681264571,0.59358941,34752.0,34751.0,6.27550568]
[1625681264873,0.25451411,34752.0,34751.0,6.27550568]
[1625681265024,0.0849044,34752.0,34751.0,6.27550568]
[1625681267202,0.25447838,34752.0,34751.0,6.27550568]
[1625681267655,0.0849044,34752.0,34751.0,6.27550568]
[1625681271711,0.59346251,34753.0,34751.0,6.27550568]
[1625681271938,0.08485506,34752.0,34751.0,0.24564315]
[1625681272087,0.08485506,34752.0,34751.0,0.24057544]
[1625681272237,0.08485506,34752.0,34751.0,6.26714497]
[1625681272388,0.59346135,34753.0,34751.0,6.27221246]
[1625681272689,0.50860749,34753.0,34752.0,4.56550565]
[1625681274493,0.50860749,34753.0,34752.0,4.82549565]
[1625681275019,0.59345847,34753.0,34752.0,4.82549565]
[1625681275619,0.25442426,34753.0,34752.0,4.82549565]
[1625681276371,0.59325512,34754.0,34752.0,6.2962446]
[1625681276670,0.59325512,34754.0,34753.0,4.58073732]
[1625681276824,0.2543724,34754.0,34753.0,4.58073732]
[1625681277121,0.59419403,34757.0,34753.0,6.04990502]
[1625681277270,0.59319403,34757.0,34753.0,6.05839179]
[1625681277424,0.25434697,34757.0,34756.0,4.56867202]
[1625681277572,0.59318793,34757.0,34756.0,4.56867202]
[1625681277722,0.59318793,34757.0,34756.0,4.57373652]
[1625681277871,0.50834916,34757.0,34756.0,4.57373652]
[1625681278021,0.59317127,34757.0,34756.0,4.57373652]
[1625681278339,0.59317127,34757.0,34756.0,5.0548874]
[1625681278478,0.25433031,34757.0,34756.0,5.0548874]
[1625681279678,0.84787174,34758.0,34756.0,5.0548874]
[1625681279679,0.59403517,34758.0,34756.0,5.0548874]
[1625681280048,0.50922734,34758.0,34757.0,3.4255707]
[1625681280206,0.50922734,34758.0,34757.0,4.5724921]
[1625681280655,0.84778359,34758.0,34757.0,4.5724921]
[1625681280798,0.50900263,34758.0,34757.0,4.5724921]
[1625681282001,1.18629501,34758.0,34757.0,4.5724921]
[1625681282305,1.42687045,34758.0,34757.0,4.5724921]
[1625681282911,1.42687045,34758.0,34757.0,3.26751279]
[1625681284402,2.44272029,34758.0,34757.0,3.26751279]
[1625681284704,1.42687045,34758.0,34757.0,3.26751279]
[1625681284854,2.44267719,34758.0,34757.0,3.26751279]
[1625681286282,2.44167719,34758.0,34757.0,3.26751279]
[1625681286429,2.68225263,34758.0,34757.0,3.26751279]
[1625681287029,2.68225263,34758.0,34757.0,1.79659471]
[1625681287182,2.68225263,34758.0,34757.0,1.79153021]
[1625681287328,2.68225263,34758.0,34757.0,3.26239218]
[1625681289129,2.68225263,34758.0,34757.0,2.1223275]
[1625681289806,2.68225263,34758.0,34757.0,3.26115869]
[1625681290260,2.68225263,34758.0,34757.0,7.35785869]
[1625681290559,1.66644589,34758.0,34757.0,7.35785869]
[1625681290861,2.68243092,34758.0,34757.0,7.35785869]
[1625681291772,3.68243092,34758.0,34757.0,3.26115869]
[1625681292439,2.68243092,34758.0,34757.0,3.26115869]
[1625681292589,3.86783594,34758.0,34757.0,2.1223275]
[1625681292744,4.86783594,34758.0,34757.0,2.1223275]
[1625681293045,4.86783594,34758.0,34756.0,0.97714965]
[1625681293348,2.20169624,34757.0,34756.0,0.08150373]
[1625681293496,3.72590821,34757.0,34755.0,0.08153921]
[1625681293648,3.72590821,34757.0,34756.0,0.00505982]
[1625681293797,1.48115088,34758.0,34756.0,0.00505982]
[1625681293944,3.72606605,34757.0,34756.0,0.00505982]
[1625681294097,3.72606605,34757.0,16171.0,1.12181928]
[1625681294245,0.5,34756.0,34749.0,0.9539764]
[1625681294395,1.72172632,34750.0,34749.0,0.9539764]
[1625681294548,2.64758632,34750.0,34741.0,1.47314479]
[1625681294703,2.14758632,34750.0,34749.0,0.00505381]
[1625681294847,2.06008632,34750.0,34749.0,0.00505381]
[1625681294997,2.58469531,34750.0,34747.0,0.00505428]
[1625681295299,1.52463118,34749.0,34747.0,0.00505428]
[1625681295449,1.0,34748.0,34747.0,0.00505428]
[1625681295899,1.0,34748.0,34746.0,0.00506218]
[1625681296050,1.0,34748.0,34745.0,0.003]
[1625681296051,1.0,34748.0,34747.0,0.00506229]
[1625681296207,1.52463118,34749.0,34747.0,0.00506229]
[1625681296363,2.58420485,34750.0,34746.0,0.00506217]
[1625681296501,0.24057544,34748.0,34746.0,0.00506217]
[1625681296660,0.24057544,34748.0,34745.0,0.003]
[1625681296952,0.24057544,34748.0,34747.0,0.005062]
[1625681297102,0.24057544,34748.0,34746.0,0.005062]
[1625681297251,0.47847544,34748.0,34746.0,0.005062]
[1625681297401,1.47847544,34748.0,34746.0,0.005062]
[1625681297853,1.0,34747.0,34746.0,0.005062]
[1625681298002,0.47847544,34748.0,34746.0,0.005062]
[1625681298154,1.0,34747.0,34746.0,0.005062]
[1625681299052,0.47847544,34748.0,34746.0,0.005062]
[1625681299205,1.0,34747.0,34746.0,0.005062]
[1625681299960,1.0851,34747.0,34746.0,0.005062]
[1625681300116,4.9759,34747.0,34745.0,0.003]
[1625681300402,4.8908,34747.0,34745.0,0.003]
[1625681300563,1.0,34746.0,34745.0,0.003]
[1625681300929,1.0,34746.0,34745.0,0.0080622]
[1625681301379,1.0861,34746.0,34745.0,0.0080622]
[1625681301978,4.8908,34747.0,34745.0,0.0080622]
[1625681302287,4.8908,34747.0,34745.0,0.003]
[1625681302732,4.8908,34747.0,34746.0,0.00506198]
[1625681302885,3.8908,34747.0,34746.0,0.00506198]
[1625681303184,4.8908,34747.0,34746.0,0.00506198]
[1625681303333,4.8908,34747.0,34745.0,0.003]
[1625681303935,1.0,34746.0,34745.0,0.003]
[1625681304085,1.0863,34746.0,34745.0,0.003]
[1625681304535,1.32687544,34746.0,34745.0,0.003]
[1625681304911,0.32687544,34746.0,34745.0,0.003]
[1625681305060,1.32687544,34746.0,34745.0,0.003]
[1625681307241,1.24057544,34746.0,34745.0,0.003]
[1625681307391,1.24057544,34746.0,34743.0,0.001]
[1625681307842,1.0,34744.0,34743.0,0.001]
[1625681308444,1.24057544,34744.0,34743.0,0.001]
[1625681316331,0.24057544,34744.0,34741.0,0.001]
[1625681316704,0.24057544,34742.0,34741.0,0.001]
[1625681316854,1.24057544,34742.0,34741.0,0.001]
[1625681317458,1.24057544,34742.0,34741.0,0.00605339]
[1625681317756,0.24057544,34742.0,34741.0,0.001]
[1625681317906,0.24057544,34742.0,34741.0,0.00605341]
[1625681321356,1.24057544,34742.0,34741.0,0.00605341]
[1625681321509,1.32797544,34742.0,34741.0,0.00605341]
[1625681322107,0.32797544,34742.0,34741.0,0.00605341]
[1625681322425,1.32797544,34742.0,34741.0,0.00605341]
[1625681322710,1.24057544,34742.0,34741.0,0.00605341]
[1625681324136,2.33831025,34742.0,34741.0,0.00605341]
[1625681324600,2.25271025,34742.0,34741.0,0.00605341]
[1625681326240,1.25271025,34742.0,34741.0,0.00605341]
[1625681326393,2.25271025,34742.0,34741.0,0.00605341]
[1625681327294,3.43314293,34742.0,34741.0,0.00605341]
[1625681327444,2.25271025,34742.0,34741.0,0.00605341]
[1625681328272,2.25271025,34742.0,34741.0,0.00505341]
[1625681328580,2.25271025,34742.0,34740.0,0.00505308]
[1625681328721,0.24057544,34741.0,34740.0,0.00505308]
[1625681329622,1.24057544,34741.0,34740.0,0.00505308]
[1625681334816,2.2520755,34741.0,34740.0,0.00505308]
[1625681336828,1.2520755,34741.0,34740.0,0.00505308]
[1625681336980,2.2520755,34741.0,34740.0,0.00505308]
[1625681337585,3.43230476,34741.0,34740.0,0.00505308]
[1625681337729,3.43230476,34741.0,34739.0,0.00505327]
[1625681338033,1.24057544,34741.0,34740.0,0.00505322]
[1625681338333,1.25244207,34741.0,34740.0,0.00505322]
[1625681338481,2.93291486,34741.0,34739.0,0.00505325]
[1625681338782,2.19241804,34740.0,34739.0,0.00505325]
[1625681338932,3.01311804,34740.0,34739.0,0.00505325]
[1625681339084,4.37509541,34740.0,34739.0,0.00505325]
[1625681339382,5.37509541,34740.0,34739.0,0.00505325]
[1625681339682,6.89358967,34740.0,34738.0,0.001]
[1625681339985,5.06187344,34739.0,34738.0,0.001]
[1625681340132,6.57454047,34739.0,34738.0,0.001]
[1625681340885,6.81511591,34739.0,34738.0,0.001]
[1625681341642,6.31511591,34739.0,34738.0,0.001]
[1625681342460,4.79658762,34739.0,34738.0,0.001]
[1625681343060,5.29658762,34739.0,34738.0,0.001]
[1625681343213,6.81516545,34739.0,34738.0,0.001]
[1625681343513,6.31516545,34739.0,34738.0,0.001]
[1625681344640,4.79658762,34739.0,34738.0,0.001]
[1625681344944,5.31518126,34739.0,34738.0,0.001]
[1625681345096,6.31518126,34739.0,34738.0,0.001]
[1625681346292,6.31518126,34739.0,34736.0,0.001]
[1625681346592,3.54382327,34737.0,34736.0,0.001]
[1625681346896,3.78439871,34737.0,34736.0,0.001]
[1625681347046,4.78439871,34737.0,34736.0,0.001]
[1625681348474,5.04737871,34737.0,34736.0,0.001]
[1625681348629,7.06670809,34737.0,34736.0,0.001]
[1625681351553,7.07937772,34737.0,34736.0,0.001]
[1625681351853,7.06670809,34737.0,34736.0,0.001]
[1625681352378,7.07937803,34737.0,34736.0,0.001]
[1625681353054,6.74287871,34737.0,34736.0,0.001]
[1625681353356,7.75686095,34737.0,34736.0,0.001]
[1625681353809,7.74419101,34737.0,34736.0,0.001]
[1625681354257,9.43464856,34737.0,34736.0,0.001]
[1625681354407,7.75686104,34737.0,34736.0,0.001]
[1625681354560,7.74419101,34737.0,34736.0,0.001]
[1625681358840,11.82979101,34737.0,34736.0,0.001]
[1625681359291,11.82979101,34737.0,34734.0,0.001]
[1625681359588,5.7450967,34735.0,34734.0,0.001]
[1625681359746,6.2450967,34735.0,34734.0,0.001]
[1625681360338,7.2450967,34735.0,34734.0,0.001]
[1625681361021,7.48567214,34735.0,34734.0,0.001]
[1625681364764,6.98567214,34735.0,34734.0,0.001]
[1625681365223,6.98567214,34735.0,34732.0,0.001]
[1625681365671,4.22320172,34733.0,34732.0,0.001]
[1625681366720,4.22320172,34733.0,34732.0,0.00605796]
[1625681366870,4.22320172,34733.0,34732.0,0.001]
[1625681367017,4.46377716,34733.0,34732.0,0.001]
[1625681367180,3.1123999,34733.0,34732.0,0.00605768]
[1625681368071,4.4638313,34733.0,34732.0,0.00605768]
[1625681368970,5.4638313,34733.0,34732.0,0.00605768]
[1625681369423,4.4638313,34733.0,34732.0,0.00605768]
[1625681371749,3.1123999,34733.0,34732.0,0.00605768]
[1625681372350,3.1123999,34733.0,34732.0,0.24990768]
[1625681376781,4.46461803,34733.0,34732.0,0.24990768]
[1625681377233,4.46461803,34733.0,34732.0,0.24890768]
[1625681377683,4.46461803,34733.0,34732.0,0.00505768]
[1625681378131,4.46461803,34733.0,34732.0,0.32861]
[1625681378356,3.1123999,34733.0,34732.0,0.32861]
[1625681378508,3.1123999,34733.0,34732.0,0.33366459]
[1625681378955,1.1115999,34733.0,34732.0,0.33366459]
[1625681379106,0.56466754,34734.0,34732.0,0.57424003]
[1625681379408,0.24057544,34735.0,34732.0,0.57424003]
[1625681379556,0.24057544,34735.0,34733.0,0.00505482]
[1625681380984,0.24157544,34737.0,34733.0,0.00505482]
[1625681381135,0.24157544,34737.0,34736.0,0.24057544]
[1625681381284,0.9341,34745.0,34736.0,0.24057544]
[1625681381436,0.9341,34745.0,34736.0,0.24562958]
[1625681381735,0.9341,34745.0,34737.0,0.00505393]
[1625681382787,0.24057544,34746.0,34737.0,0.00505393]
[1625681382943,0.24057544,34746.0,34740.0,4.9369]
[1625681383090,0.24057544,34750.0,34741.0,0.48115088]
[1625681383237,0.50718565,34744.0,34741.0,0.97014613]
[1625681383387,0.5071707,34745.0,34741.0,0.97519943]
[1625681383688,0.50717058,34744.0,34741.0,0.97519943]
[1625681384363,0.50700199,34745.0,34741.0,0.97519943]
[1625681386616,0.50700199,34745.0,34743.0,0.48871985]
[1625681387065,0.50700199,34745.0,34744.0,0.48115088]
[1625681387221,0.001,34746.0,34744.0,0.48115088]
[1625681387380,0.50689331,34745.0,34744.0,0.48115088]
[1625681387517,0.72285331,34745.0,34744.0,0.48115088]
[1625681388120,4.50685331,34745.0,34744.0,0.48115088]
[1625681389168,4.74742875,34745.0,34744.0,0.48115088]
[1625681389324,4.74742875,34745.0,34744.0,0.55265088]
[1625681390071,5.74742875,34745.0,34744.0,0.55265088]
[1625681391199,5.74742875,34745.0,34744.0,0.0715]
[1625681391352,7.26818691,34745.0,34744.0,0.0715]
[1625681393072,6.26818691,34745.0,34744.0,0.0715]
[1625681393373,7.26818691,34745.0,34744.0,0.0715]
[1625681393672,6.26818691,34745.0,34744.0,0.0715]
[1625681394274,3.83602222,34745.0,34744.0,0.0715]
[1625681394576,2.31526406,34745.0,34744.0,0.0715]
[1625681396530,2.31526406,34745.0,34744.0,0.29811]
[1625681399311,3.49782376,34745.0,34744.0,0.29811]
[1625681399460,2.14598845,34745.0,34744.0,0.29811]
[1625681399910,3.49732868,34745.0,34744.0,0.29811]
[1625681400062,3.49732868,34745.0,34744.0,0.0715]
[1625681400372,4.49732868,34745.0,34744.0,0.0715]
[1625681400664,3.49732868,34745.0,34744.0,0.0715]
[1625681400965,2.14598845,34745.0,34744.0,0.0715]
[1625681402238,1.63909514,34745.0,34744.0,0.0715]
[1625681402388,2.1459203,34745.0,34744.0,0.0715]
[1625681403969,2.1459203,34745.0,34744.0,0.0765559]
[1625681404718,2.1459203,34745.0,34744.0,0.0715]
[1625681405617,3.49679635,34745.0,34744.0,0.0715]
[1625681405920,4.49679635,34745.0,34744.0,0.0715]
[1625681406373,4.49679635,34745.0,34744.0,0.07655717]
[1625681406518,3.49679635,34745.0,34744.0,0.07655717]
[1625681406820,3.49679635,34745.0,34744.0,0.0715]
[1625681407947,3.49679635,34745.0,34744.0,0.07655727]
[1625681408621,3.58199635,34745.0,34744.0,0.16265727]
[1625681408772,3.49679635,34745.0,34744.0,0.07655727]
[1625681408930,4.50984399,34745.0,34744.0,0.07655727]
[1625681409447,3.15896794,34745.0,34744.0,0.07655727]
[1625681409672,4.50964591,34745.0,34744.0,0.07655727]
[1625681409898,3.15896794,34745.0,34744.0,0.07655727]
[1625681412304,4.50967852,34745.0,34744.0,0.07655727]
[1625681412680,4.59677852,34745.0,34744.0,0.16185727]
[1625681412979,4.59677852,34745.0,34744.0,0.07655727]
[1625681413130,4.50967852,34745.0,34744.0,0.07655727]
[1625681414106,3.15896794,34745.0,34744.0,0.07655727]
[1625681414554,4.50983962,34745.0,34744.0,0.07655727]
[1625681415833,4.52250653,34745.0,34744.0,0.07655727]
[1625681415983,4.52250653,34745.0,34744.0,3.71545727]
[1625681416285,3.17163485,34745.0,34744.0,3.71545727]
[1625681416883,3.15896794,34745.0,34744.0,3.71545727]
[1625681419514,1.97640824,34745.0,34744.0,3.71545727]
[1625681420431,3.1589493,34745.0,34744.0,3.71545727]
[1625681420877,4.51048115,34745.0,34744.0,3.71545727]
[1625681421317,4.52314539,34745.0,34744.0,3.71545727]
[1625681422370,4.52314539,34745.0,34744.0,0.07655727]
[1625681424630,5.52314539,34745.0,34744.0,0.07655727]
[1625681424775,5.52314539,34745.0,34737.0,0.0735]
[1625681424776,7.04539824,34745.0,34737.0,0.0735]
[1625681424926,4.05978044,34738.0,34737.0,0.0735]
[1625681425074,4.33223044,34738.0,34737.0,0.0735]
[1625681425224,4.34491026,34738.0,34737.0,0.0785531]
[1625681425523,4.82606114,34738.0,34737.0,0.0785531]
[1625681425673,7.34898151,34738.0,34737.0,0.0785531]
[1625681426123,6.34898151,34738.0,34737.0,0.0785531]
[1625681426272,6.33630169,34738.0,34737.0,0.0785531]
[1625681426422,7.33630169,34738.0,34737.0,0.0785531]
[1625681426573,7.34898216,34738.0,34737.0,0.0785531]
[1625681428232,7.33630169,34738.0,34737.0,0.0715]
[1625681428384,7.33630169,34738.0,34737.0,0.0735]
[1625681428526,7.42290169,34738.0,34737.0,0.0735]
[1625681428975,7.43558238,34738.0,34737.0,0.0735]
[1625681430102,7.42290169,34738.0,34737.0,0.0735]
[1625681431002,12.44350169,34738.0,34737.0,0.0735]
[1625681432056,11.44350169,34738.0,34737.0,0.0735]
[1625681432205,12.44350169,34738.0,34737.0,0.0735]
[1625681432809,12.94350169,34738.0,34737.0,0.0735]
[1625681435960,12.94350169,34738.0,34728.0,0.45742171]
[1625681436110,2.70825212,34729.0,34728.0,0.12907544]
[1625681436259,2.93919212,34729.0,34728.0,0.12907544]
[1625681436411,4.29336571,34729.0,34728.0,0.12907544]
[1625681437087,5.29336571,34729.0,34728.0,0.12907544]
[1625681437536,5.77451659,34729.0,34728.0,0.12907544]
[1625681438588,4.420343,34729.0,34728.0,0.12907544]
[1625681438737,3.420343,34729.0,34728.0,0.12907544]
[1625681438887,4.420343,34729.0,34728.0,0.12907544]
[1625681439044,5.09714428,34729.0,34728.0,0.12907544]
[1625681440164,4.09714428,34729.0,34728.0,0.12907544]
[1625681440313,2.91233686,34729.0,34728.0,0.12907544]
[1625681441593,4.09630298,34729.0,34728.0,0.12907544]
[1625681442719,2.91233686,34729.0,34728.0,0.12907544]
[1625681442869,2.67176142,34729.0,34728.0,0.12907544]
[1625681443019,2.44082142,34729.0,34728.0,0.12907544]
[1625681443319,2.44082142,34729.0,34728.0,5.52216599]
[1625681443469,2.20024598,34729.0,34728.0,5.76274143]
[1625681443621,1.18467259,34729.0,34728.0,5.76274143]
[1625681443770,1.18467259,34729.0,34728.0,6.25431022]
[1625681443920,1.18467259,34729.0,34728.0,6.25936382]
[1625681444080,1.18467259,34729.0,34728.0,1.19406382]
[1625681445126,1.18467259,34729.0,34728.0,0.86639302]
[1625681445422,2.19938419,34729.0,34728.0,0.86133942]
[1625681445648,2.19938419,34729.0,34728.0,0.86639311]
[1625681446474,2.19938419,34729.0,34728.0,0.36965088]
[1625681446624,2.19938419,34729.0,34728.0,0.53359213]
[1625681446774,2.19938419,34729.0,34728.0,0.53864605]
[1625681447085,3.19938419,34729.0,34728.0,0.3747048]
[1625681447224,3.19938419,34729.0,34728.0,0.36965088]
[1625681447524,3.43995963,34729.0,34728.0,0.37470472]
[1625681447825,2.43995963,34729.0,34728.0,0.37470472]
[1625681447975,3.43995963,34729.0,34728.0,0.37470472]
[1625681448726,2.43995963,34729.0,34728.0,0.37470472]
[1625681451203,2.43995963,34729.0,34728.0,0.53856292]
[1625681451804,1.42524803,34729.0,34728.0,0.53856292]
[1625681452330,2.43975838,34729.0,34728.0,0.53856292]
[1625681452781,2.43975838,34729.0,34728.0,0.37470472]
[1625681453607,3.62322394,34729.0,34728.0,0.37470472]
[1625681453756,4.62322394,34729.0,34728.0,0.37470472]
[1625681455857,3.43975838,34729.0,34728.0,0.37470472]
[1625681457735,2.43975838,34729.0,34728.0,0.37470472]
[1625681458508,1.01422347,34730.0,34728.0,0.53850452]
[1625681458802,0.50736086,34730.0,34728.0,0.37470472]
[1625681459014,0.50729541,34732.0,34729.0,0.00505623]
[1625681459327,0.24157544,34733.0,34730.0,1.14434443]
[1625681459614,0.24157544,34733.0,34732.0,0.24057544]
[1625681459915,0.24157544,34733.0,34732.0,0.24562677]
[1625681461115,0.001,34733.0,34732.0,0.24562677]
[1625681461565,0.001,34733.0,34732.0,0.48620221]
[1625681462929,0.001,34733.0,34732.0,1.63025841]
[1625681467271,0.16919976,34736.0,34732.0,1.63025841]
[1625681467423,0.16920862,34735.0,34732.0,0.48620221]
[1625681467572,0.48896862,34735.0,34733.0,0.00505141]
[1625681468023,0.16921502,34734.0,34733.0,0.00505141]
[1625681468772,0.43071502,34734.0,34733.0,0.00505141]
[1625681469160,0.43071502,34734.0,34733.0,5.02245141]
[1625681469675,0.2615,34734.0,34733.0,5.02245141]
[1625681471028,0.3465,34734.0,34733.0,5.02245141]
[1625681471177,0.2615,34734.0,34733.0,5.02245141]
[1625681472002,1.18473347,34737.0,34733.0,5.02245141]
[1625681472303,1.18473347,34737.0,34734.0,0.16867316]
[1625681472905,1.18473347,34737.0,34735.0,0.00505159]
[1625681473129,1.18473347,34737.0,34735.0,0.16866759]
[1625681473580,1.18473347,34737.0,34736.0,0.00505151]
[1625681473737,0.001,34737.0,34736.0,0.24562695]
[1625681473883,0.001,34737.0,34736.0,0.40920978]
[1625681474195,0.001,34737.0,34736.0,0.49099557]
[1625681474782,0.001,34737.0,34736.0,0.32741274]
[1625681474932,0.001,34737.0,34736.0,0.49100734]
[1625681475687,0.001,34737.0,34736.0,0.40922155]
[1625681476137,0.001,34737.0,34736.0,0.49101012]
[1625681476287,1.42448556,34738.0,34736.0,0.49101012]
[1625681476587,1.42448556,34738.0,34736.0,0.40922155]
[1625681476736,1.42448556,34738.0,34736.0,0.40417004]
[1625681478616,1.18452885,34737.0,34736.0,0.40417004]
[1625681479062,1.18452885,34737.0,34736.0,0.40921142]
[1625681479365,1.18452885,34737.0,34736.0,0.24561682]
[1625681480638,1.18452885,34737.0,34736.0,0.40935304]
[1625681483417,2.53896639,34737.0,34736.0,0.24561682]
[1625681483720,1.42510429,34737.0,34736.0,0.40941856]
[1625681484172,2.7795691,34737.0,34736.0,0.40941856]
[1625681485594,3.7795691,34737.0,34736.0,0.40941856]
[1625681486273,3.7795691,34737.0,34736.0,0.24561682]
[1625681486419,3.7795691,34737.0,34736.0,0.00504138]
[1625681487028,2.7795691,34737.0,34736.0,0.00504138]
[1625681487174,3.79225971,34737.0,34735.0,0.00504802]
[1625681487320,4.2636,34736.0,34735.0,0.00504802]
[1625681487470,6.80385095,34736.0,34733.0,5.18187014]
[1625681487621,7.30385095,34736.0,34733.0,0.16447014]
[1625681487771,3.02145757,34734.0,34733.0,0.16447014]
[1625681487923,6.13142577,34734.0,34727.0,0.1668747]
[1625681488222,2.87964635,34728.0,34727.0,0.002]
[1625681488376,3.25009635,34728.0,34727.0,0.002]
[1625681488521,3.26279036,34728.0,34727.0,0.00704984]
[1625681488675,4.27914482,34728.0,34727.0,0.00704984]
[1625681488823,4.26645081,34728.0,34727.0,0.002]
[1625681489123,4.17975081,34728.0,34727.0,0.002]
[1625681489272,4.17975081,34728.0,34722.0,0.003]
[1625681489273,4.17975081,34728.0,34724.0,0.003]
[1625681489423,5.17975081,34728.0,34724.0,0.003]
[1625681489572,2.3706661,34725.0,34724.0,0.003]
[1625681489722,8.61239242,34725.0,34724.0,0.003]
[1625681490096,8.61239242,34725.0,34724.0,0.00804994]
[1625681490922,7.61239242,34725.0,34724.0,0.00804994]
[1625681491376,3.09239242,34725.0,34724.0,0.00804994]
[1625681491675,3.09239242,34725.0,34724.0,0.003]
[1625681491824,3.09239242,34725.0,34724.0,4.4185]
[1625681491989,4.09239242,34725.0,34724.0,4.4185]
[1625681492139,3.09239242,34725.0,34724.0,4.4185]
[1625681492275,4.09239242,34725.0,34724.0,4.4185]
[1625681493928,3.09239242,34725.0,34724.0,4.4185]
[1625681494077,4.09239242,34725.0,34724.0,4.4185]
[1625681494600,3.09239242,34725.0,34724.0,4.4185]
[1625681494762,2.85181698,34725.0,34724.0,4.66775]
[1625681494901,1.49717482,34725.0,34724.0,4.66775]
[1625681495053,0.48115088,34725.0,34724.0,4.66775]
[1625681495202,0.48015088,34725.0,34724.0,4.67279916]
[1625681495352,1.49531757,34725.0,34724.0,4.66979916]
[1625681495803,0.48015088,34725.0,34724.0,5.15095004]
[1625681496102,0.48015088,34725.0,34724.0,6.13874374]
[1625681496702,0.48015088,34725.0,34724.0,5.15095004]
[1625681498506,0.48015088,34725.0,34724.0,6.13876506]
[1625681500759,0.48015088,34725.0,34724.0,5.15095004]
[1625681500909,0.48015088,34725.0,34724.0,4.90170004]
[1625681501740,1.49520487,34725.0,34724.0,4.90170004]
[1625681502037,1.49520487,34725.0,34724.0,0.48620004]
[1625681502490,2.49520487,34725.0,34724.0,0.64578143]
[1625681502718,2.49520487,34725.0,34724.0,0.48115088]
[1625681503164,3.84847943,34725.0,34724.0,0.48115088]
[1625681505116,2.49520487,34725.0,34724.0,0.48115088]
[1625681507596,1.49520487,34725.0,34724.0,0.48115088]
[1625681508123,2.67887034,34725.0,34724.0,0.48115088]
[1625681511049,3.67887034,34725.0,34724.0,0.48115088]
[1625681511500,2.49520487,34725.0,34724.0,0.48115088]
[1625681511651,1.49520487,34725.0,34724.0,0.48620014]
[1625681513526,0.48015088,34725.0,34724.0,0.65080266]
[1625681516606,0.48015088,34725.0,34724.0,0.89454266]
[1625681519910,1.1562739,34725.0,34724.0,0.89454266]
[1625681521564,1.1562739,34725.0,34724.0,0.65080266]
[1625681522616,0.23957544,34725.0,34724.0,1.42442483]
[1625681522771,0.40873285,34725.0,34724.0,1.42442483]
[1625681523143,0.40873285,34725.0,34724.0,2.41137894]
[1625681523442,0.40873285,34725.0,34724.0,1.42442483]
[1625681524118,0.91581993,34725.0,34724.0,0.93103333]
[1625681524268,0.91581993,34725.0,34724.0,0.65079333]
[1625681524569,2.93014781,34725.0,34724.0,0.48620014]
[1625681525026,1.93014781,34725.0,34724.0,0.48620014]
[1625681525169,1.93014781,34725.0,34724.0,0.65087032]
[1625681525324,0.91581993,34725.0,34724.0,0.65087032]
[1625681525548,0.91581993,34725.0,34724.0,0.48620014]
[1625681525995,1.15639537,34725.0,34724.0,0.48620014]
[1625681527272,2.17112274,34725.0,34724.0,0.65089502]
[1625681528546,2.43960274,34725.0,34724.0,0.65089502]
[1625681531401,2.43960274,34725.0,34724.0,0.48620014]
[1625681532527,2.43960274,34725.0,34724.0,0.65117848]
[1625681533127,3.62401655,34725.0,34724.0,0.65117848]